bitfinex/quotes_ETHUSD_20220218
["timestamp","ask_amount","ask_price","bid_price","bid_amount"]
[1645146526005,0.07385251,2885.2,2884.6,0.00381568]
[1645146526203,0.07385251,2885.2,2884.8,0.87626693]
[1645146526402,0.07385251,2885.2,2885.0,0.00308062]
[1645146527204,0.07385251,2885.2,2884.6,0.00381568]
[1645146527403,0.94081251,2885.2,2884.6,0.00381568]
[1645146527604,0.07385251,2885.1,2885.0,0.00308062]
[1645146528203,0.07385251,2885.2,2885.0,0.00308062]
[1645146528433,0.07385251,2885.1,2884.6,0.00381568]
[1645146528636,0.07385251,2885.0,2884.9,0.00308065]
[1645146529438,0.07386112,2885.0,2884.9,0.00308065]
[1645146529636,0.07386112,2885.0,2884.6,0.00381568]
[1645146529837,0.07386112,2884.9,2884.8,0.00286783]
[1645146530037,1.310108,2885.3,2884.8,0.00286783]
[1645146530240,0.07386063,2885.2,2884.8,0.00286783]
[1645146530837,0.07386063,2885.2,2884.6,0.00381568]
[1645146531041,0.07386063,2885.2,2884.9,0.00286781]
[1645146532083,0.07386063,2885.2,2884.6,0.00381568]
[1645146532285,0.07386063,2885.2,2884.9,0.00286778]
[1645146533286,3.57386063,2885.2,2884.6,0.00381568]
[1645146533486,0.07386063,2885.1,2884.9,0.00286778]
[1645146533685,0.37386063,2885.2,2884.9,0.00286778]
[1645146533886,0.07386063,2885.1,2884.9,0.00286778]
[1645146534086,0.07386063,2885.0,2884.9,0.00286778]
[1645146534290,1.41470709,2885.3,2884.9,6.778e-05]
[1645146534291,0.86695,2885.1,2884.9,6.778e-05]
[1645146534488,0.86695,2885.1,2883.9,0.86522153]
[1645146534489,24.338,2885.0,2884.0,0.00381568]
[1645146534687,0.85892176,2884.7,2884.0,0.00381568]
[1645146534891,0.498,2884.6,2884.0,0.00381568]
[1645146535087,0.498,2884.6,2883.3,1.46344393]
[1645146535088,4.0071,2884.6,2883.3,1.46344393]
[1645146535388,0.86728,2884.3,2883.4,1.45962825]
[1645146535588,0.8673,2884.1,2883.5,1.46344393]
[1645146535841,0.8673,2884.1,2883.6,1.45962825]
[1645146536045,0.8673,2884.1,2883.6,1.46344393]
[1645146536241,0.8673,2884.1,2883.7,0.00381568]
[1645146536644,1.73464,2884.1,2883.7,0.00381568]
[1645146536844,0.86728,2884.0,2883.7,0.00381568]
[1645146537044,0.86728,2884.0,2883.8,0.00135978]
[1645146537644,1.73458,2884.0,2883.8,0.00135978]
[1645146537843,1.14600292,2884.2,2883.8,0.00135978]
[1645146538045,3.46885,2884.5,2883.7,0.00381568]
[1645146538243,7.5071,2884.6,2883.8,0.00308119]
[1645146538449,7.5071,2884.6,2883.8,1.46327966]
[1645146538643,7.5071,2884.6,2883.9,0.00381568]
[1645146538844,7.5071,2884.6,2883.8,0.00308119]
[1645146539246,1.78622291,2884.4,2883.8,0.00381568]
[1645146539446,2.38622291,2884.4,2883.8,0.00381568]
[1645146539695,0.1733,2884.3,2884.1,0.00308105]
[1645146539891,3.6733,2884.3,2884.1,0.00308105]
[1645146540290,0.86733,2884.2,2884.1,0.00308105]
[1645146540491,4.54063,2884.2,2883.3,0.00381568]
[1645146540692,4.84063,2884.2,2884.1,0.00308105]
[1645146540894,0.3,2884.2,2884.1,0.00308105]
[1645146541097,0.1733,2884.3,2884.1,0.00308105]
[1645146541098,0.4733,2884.3,2884.1,0.00308105]
[1645146541295,0.1733,2884.3,2884.1,0.00308105]
[1645146541497,4.37622,2884.6,2884.1,0.00308105]
[1645146541498,3.5091,2884.6,2884.1,0.00308105]
[1645146541698,3.5091,2884.6,2883.9,1.46055199]
[1645146541898,3.5091,2884.6,2884.0,0.00381568]
[1645146542197,3.5091,2884.6,2884.1,0.00308105]
[1645146542596,4.37622,2884.6,2884.1,0.00308105]
[1645146542795,4.37622,2884.6,2883.8,0.00381568]
[1645146542996,4.32622,2884.6,2884.0,1.11375563]
[1645146543197,4.32622,2884.6,2884.2,0.00308098]
[1645146543440,4.62622,2884.6,2884.2,0.00308098]
[1645146543644,3.7591,2884.6,2884.2,0.00308098]
[1645146543845,1.6372,2884.9,2884.2,0.00308098]
[1645146544047,1.3913,2885.1,2884.1,1.46159865]
[1645146544244,0.07386015,2885.0,2884.2,0.00381568]
[1645146544446,0.07386015,2885.0,2884.3,0.00308095]
[1645146544647,0.07386015,2885.0,2884.3,0.86991095]
[1645146544847,0.07386015,2885.0,2884.6,0.97484393]
[1645146545046,0.07386015,2885.0,2884.7,1.46159865]
[1645146545245,0.07386015,2884.9,2884.4,0.00381568]
[1645146545446,0.07386015,2885.2,2884.3,1.45924547]
[1645146545649,0.07386015,2885.1,2884.7,0.00308076]
[1645146545852,0.07386015,2885.0,2884.7,0.00308076]
[1645146546052,0.07386015,2884.9,2884.7,0.00308076]
[1645146546254,0.07386015,2884.8,2884.7,0.00308076]
[1645146546451,1.61437025,2885.4,2884.7,0.00308076]
[1645146546452,0.07386015,2885.3,2884.7,1.45924547]
[1645146546851,0.07386015,2885.3,2884.7,1.46232623]
[1645146547086,0.07386015,2885.2,2884.7,1.46232623]
[1645146547286,0.07386015,2885.1,2884.7,1.46232623]
[1645146547486,0.66036899,2885.5,2884.7,1.46232623]
[1645146547487,0.07386015,2885.0,2884.7,1.46232623]
[1645146547692,0.07386015,2884.9,2884.8,1.45924547]
[1645146547894,0.07386015,2884.9,2884.8,1.46232619]
[1645146548093,1.03422914,2885.5,2884.8,0.00308072]
[1645146548391,0.95804224,2885.2,2884.8,0.00308072]
[1645146548595,0.07386015,2885.1,2884.8,0.00308072]
[1645146548795,0.07386015,2885.1,2884.5,1.45924547]
[1645146548993,0.07386015,2885.1,2884.6,0.00381568]
[1645146549194,0.07386015,2885.0,2884.8,0.00308078]
[1645146549392,0.07386015,2884.9,2884.8,0.00308078]
[1645146549894,0.07386015,2885.3,2884.8,0.00308078]
[1645146550192,0.9897693,2885.3,2884.7,1.45924547]
[1645146550393,0.07386015,2885.2,2884.8,1.45924547]
[1645146550591,0.07386015,2885.2,2884.9,1.45924547]
[1645146550840,0.14592454,2884.8,2884.7,0.00308074]
[1645146551042,0.21978469,2884.8,2884.7,1.46450674]
[1645146551245,0.21978469,2884.8,2884.7,1.461426]
[1645146551446,0.21978469,2884.8,2884.6,0.00381568]
[1645146551643,0.07386015,2884.7,2884.6,0.00308079]
[1645146552443,0.07386015,2884.7,2884.5,1.46170439]
[1645146552643,0.07386015,2884.7,2884.6,1.46152351]
[1645146553044,0.07386015,2884.7,2884.5,1.46460434]
[1645146553645,0.07386015,2884.7,2884.5,1.46152351]
[1645146554049,0.07386015,2884.7,2884.5,1.46460437]
[1645146554883,0.07386015,2884.7,2884.5,1.46152351]
[1645146555083,0.07386015,2884.7,2884.5,1.46460437]
[1645146556187,0.07386015,2884.7,2884.5,1.46152351]
[1645146556387,0.07386015,2884.7,2884.5,1.46460437]
[1645146557388,0.07386015,2884.7,2884.5,1.46152351]
[1645146557688,0.07386015,2884.7,2884.5,1.46460437]
[1645146558341,0.14592454,2884.8,2884.5,1.46460437]
[1645146558538,0.07385416,2884.7,2884.6,0.00381568]
[1645146558837,0.07385416,2884.7,2884.6,1.46533919]
[1645146559038,0.0738546,2884.7,2884.6,1.46533919]
[1645146559243,0.14592454,2884.8,2884.6,1.46533919]
[1645146559438,0.14592454,2884.8,2884.7,1.46152351]
[1645146559742,0.14592454,2884.8,2884.7,5.26152351]
[1645146559941,0.00307946,2885.8,2884.8,5.5]
[1645146560140,0.00307946,2885.8,2884.9,4.96152351]
[1645146560141,0.07692256,2885.8,2884.9,4.96152351]
[1645146560340,0.0738431,2885.7,2885.0,2.46152351]
[1645146560542,0.0738431,2885.6,2885.5,0.85070908]
[1645146560740,0.00307946,2885.8,2885.5,2.31223259]
[1645146560946,0.73421209,2886.1,2885.0,4.46593]
[1645146561145,0.00307996,2885.8,2885.1,1.45931906]
[1645146561544,0.00307996,2885.8,2885.2,0.86658]
[1645146561748,0.07692306,2885.8,2885.3,1.45931906]
[1645146561944,0.0738431,2885.7,2885.3,1.45931906]
[1645146562190,2.38359997,2886.2,2885.4,1.18014138]
[1645146562191,0.0738431,2885.6,2885.4,1.18014138]
[1645146562387,0.00307996,2885.8,2885.5,1.45883692]
[1645146563188,0.07383554,2886.1,2885.5,1.45883692]
[1645146563587,0.00308002,2885.8,2885.5,1.45883692]
[1645146564394,0.07383554,2886.1,2885.5,1.45883692]
[1645146564890,0.00308002,2885.8,2885.5,1.45883692]
[1645146565691,0.07383554,2886.1,2885.4,1.18014138]
[1645146565939,0.00308002,2885.8,2885.4,1.18014138]
[1645146566338,0.00308002,2885.8,2885.4,2.04672138]
[1645146566946,0.07383554,2886.1,2885.4,2.04672138]
[1645146567142,0.00307999,2885.8,2885.4,2.04672138]
[1645146567546,0.00307999,2885.8,2885.3,1.39338906]
[1645146567743,0.00307999,2885.8,2885.3,0.52677906]
[1645146567943,0.00307999,2885.8,2885.0,0.1731]
[1645146568147,0.07383554,2885.9,2885.1,1.45008554]
[1645146568343,0.00307996,2885.8,2885.1,1.45008554]
[1645146568544,0.90642953,2885.8,2885.0,0.1731]
[1645146568747,0.94060554,2885.7,2885.0,0.1731]
[1645146568945,0.07383554,2885.6,2885.0,0.1731]
[1645146569145,0.07383554,2885.6,2884.8,0.00308111]
[1645146569345,0.1731,2885.5,2884.5,0.00381568]
[1645146569591,0.1731,2885.5,2884.3,0.00381568]
[1645146569592,0.86699,2885.3,2884.3,0.00381568]
[1645146569786,0.86701,2885.1,2884.8,0.00308096]
[1645146569987,0.07383554,2885.0,2884.8,0.00308096]
[1645146570394,2.60101,2885.2,2884.8,0.00308096]
[1645146570395,0.07383554,2884.9,2884.8,0.00308096]
[1645146570585,0.07383554,2884.9,2884.6,0.00381568]
[1645146570784,0.07383554,2884.8,2884.2,0.01232521]
[1645146570987,1.73404,2885.1,2884.2,0.01232521]
[1645146570988,0.07383554,2884.7,2884.3,1.45082764]
[1645146571188,0.07383554,2884.6,2884.4,0.00381568]
[1645146571389,0.86701,2884.8,2884.4,0.00381568]
[1645146571588,0.07386206,2884.7,2884.4,0.00381568]
[1645146571988,0.07386206,2884.7,2884.5,0.00308086]
[1645146572891,0.07386206,2884.7,2884.4,0.00381568]
[1645146573089,0.07386206,2884.7,2884.5,0.00308086]
[1645146573333,0.07386206,2884.7,2884.5,0.00228086]
[1645146574134,0.07386206,2884.7,2884.1,0.00381568]
[1645146574333,0.07386206,2884.7,2884.1,1.4555263]
[1645146574538,0.07386206,2884.7,2884.2,0.00381568]
[1645146575534,0.07386206,2884.7,2884.2,1.4555263]
[1645146575735,1.73394,2885.0,2884.3,1.4555263]
[1645146575939,0.07385951,2884.9,2884.4,1.45171062]
[1645146576240,0.07385951,2884.9,2884.5,0.00381568]
[1645146576438,0.07385951,2884.9,2884.5,1.4555263]
[1645146576639,0.07385951,2884.9,2884.2,0.00381568]
[1645146576640,0.86704,2884.8,2884.2,0.00381568]
[1645146576839,0.07385951,2884.7,2883.9,0.00381568]
[1645146577084,0.07385951,2884.7,2883.9,1.45565175]
[1645146577486,0.07385951,2884.7,2883.9,0.00381568]
[1645146577887,0.94090951,2884.7,2884.0,1.04028067]
[1645146578089,0.07385951,2884.6,2884.2,0.003081]
[1645146578287,0.07385951,2884.6,2884.2,1.45873275]
[1645146578488,0.07385951,2884.6,2884.3,0.00381568]
[1645146578687,0.07385951,2884.6,2884.2,0.003081]
[1645146578998,0.07385951,2884.6,2884.1,0.00381568]
[1645146579335,0.07385951,2884.6,2884.3,0.00308093]
[1645146579489,0.94093951,2884.6,2884.3,0.00308093]
[1645146579688,0.07385951,2884.5,2884.3,0.00308093]
[1645146579891,0.07385951,2884.5,2884.3,1.45865468]
[1645146580086,0.07385951,2884.5,2884.0,1.04028067]
[1645146580087,0.07385951,2884.5,2884.1,0.00381568]
[1645146580490,0.07385951,2884.5,2884.3,0.00308095]
[1645146580690,0.94096951,2884.5,2884.3,0.00308095]
[1645146580943,0.07385951,2884.4,2884.3,0.00689663]
[1645146581146,3.57385951,2884.4,2884.3,0.00308095]
[1645146581346,3.57385951,2884.4,2883.8,0.01614134]
[1645146581347,3.87385951,2884.4,2883.9,1.45212723]
[1645146581648,3.87385951,2884.4,2882.6,0.5121879]
[1645146581649,21.40455005,2884.0,2883.8,0.01232575]
[1645146581846,21.40455005,2884.0,2882.7,14.79534159]
[1645146581847,20.34,2883.7,2882.8,1.62392494]
[1645146582046,21.08525951,2883.6,2882.9,1.42905352]
[1645146582244,0.57185951,2883.5,2883.0,0.00382987]
[1645146582447,0.57185951,2883.5,2882.9,1.42905352]
[1645146582448,0.07385951,2883.4,2882.9,1.42905352]
[1645146582642,0.07385951,2883.4,2883.0,1.43288339]
[1645146582643,1.41277389,2883.4,2883.0,1.43288339]
[1645146582844,0.07385951,2883.3,2882.7,0.00382987]
[1645146583044,0.07385951,2883.3,2883.1,0.00382987]
[1645146583344,0.86765,2883.3,2882.7,0.00382987]
[1645146583546,0.3,2883.3,2882.7,0.00382987]
[1645146583746,0.3,2883.4,2882.7,0.00382987]
[1645146583943,0.1734,2883.6,2882.7,0.00382987]
[1645146584143,0.07389499,2883.5,2882.7,0.00382987]
[1645146584342,0.86743,2883.5,2882.7,0.00382987]
[1645146584584,1.16743,2883.5,2882.7,0.00382987]
[1645146585284,6.04005275,2883.9,2882.7,0.00382987]
[1645146585285,3.43773275,2883.9,2883.1,1.10301339]
[1645146585488,2.76633275,2883.9,2883.2,1.43294302]
[1645146585684,0.07388718,2883.8,2883.3,1.43294302]
[1645146585891,0.07388718,2883.8,2883.4,1.42911315]
[1645146586088,0.07388718,2883.8,2883.5,0.00382987]
[1645146586289,0.07388718,2883.8,2883.2,0.00382987]
[1645146586489,0.07388718,2883.8,2882.7,1.42072272]
[1645146586490,0.07388718,2883.8,2883.4,0.00308135]
[1645146586690,0.8674,2883.7,2883.4,0.00308135]
[1645146586891,1.73481,2883.7,2883.4,0.00308135]
[1645146587092,0.99198895,2883.6,2883.4,0.00308135]
[1645146587293,0.99198895,2883.6,2883.2,1.42072272]
[1645146587294,1.29198895,2883.6,2883.2,1.42072272]
[1645146587489,1.59198895,2883.6,2883.3,1.42455259]
[1645146587693,1.59198895,2883.6,2882.9,0.00382987]
[1645146587891,1.59198895,2883.6,2882.4,1.41094177]
[1645146588090,0.07389275,2883.5,2882.4,1.41094177]
[1645146588340,1.80880275,2883.5,2882.4,1.41094177]
[1645146588538,0.86746,2883.5,2882.4,1.41094177]
[1645146588738,0.07389468,2883.4,2882.4,2.30136864]
[1645146588939,3.5,2883.4,2882.5,1.41094177]
[1645146589142,3.8,2883.4,2882.5,1.41094177]
[1645146589345,0.86757,2883.1,2882.6,1.41094177]
[1645146589640,0.86757,2883.1,2882.7,1.41094177]
[1645146589843,0.86757,2883.1,2882.2,0.0018916]
[1645146589844,0.3,2883.0,2882.2,0.0018916]
[1645146590242,3.5,2883.2,2882.2,0.0018916]
[1645146590243,4.1,2883.2,2882.2,0.0018916]
[1645146590438,2.81589339,2882.9,2882.2,0.0018916]
[1645146590639,0.86771,2882.8,2882.2,0.0018916]
[1645146590943,1.16771,2882.8,2882.2,0.0018916]
[1645146591143,0.3,2882.8,2882.4,0.00307967]
[1645146591543,0.86758,2883.0,2882.4,0.00307967]
[1645146591743,1.16758,2883.0,2882.4,0.00307967]
[1645146591943,1.74154061,2882.9,2882.4,0.00307967]
[1645146592192,1.74154061,2882.9,2882.3,1.40929198]
[1645146592390,1.74154061,2882.9,2882.2,0.0018916]
[1645146592391,1.74154061,2882.9,2882.6,0.00307958]
[1645146592796,1.74154061,2882.9,2882.6,1.41237156]
[1645146592991,1.74154061,2882.9,2882.6,0.00307958]
[1645146593191,1.73283397,2882.9,2882.6,0.00307958]
[1645146593394,4.36768,2882.8,2882.3,1.40734224]
[1645146593594,4.36768,2882.8,2882.6,0.00307955]
[1645146593793,4.66768,2882.8,2882.6,0.00307955]
[1645146594395,4.36775,2882.7,2882.6,0.00307955]
[1645146594596,4.36775,2882.7,2882.3,1.37756798]
[1645146594597,0.86775,2882.7,2882.3,1.37756798]
[1645146594797,1.16774,2882.6,2882.2,0.0018916]
[1645146594995,1.16774,2882.6,2882.2,1.37894012]
[1645146595598,2.03546,2882.6,2882.2,1.37894012]
[1645146595847,1.04108958,2882.4,2882.2,1.37894012]
[1645146596045,1.04108958,2882.4,2882.3,0.00307972]
[1645146596847,2.50885958,2882.4,2882.3,0.00307972]
[1645146597050,2.50885958,2882.4,2882.2,0.0037832]
[1645146597051,6.5,2882.3,2882.2,0.0037832]
[1645146597246,7.1714,2882.3,2882.2,0.00686294]
[1645146597444,1.0,2882.2,2881.9,0.00381262]
[1645146597650,1.53946,2882.1,2881.9,0.01137902]
[1645146597847,1.53946,2882.1,2881.9,0.0075664]
[1645146598049,0.3,2882.0,2881.9,0.0075664]
[1645146598249,0.798,2882.0,2881.9,0.0075664]
[1645146598648,0.798,2882.0,2881.0,0.077]
[1645146598649,21.2081,2881.8,2881.0,0.077]
[1645146598852,1.02465064,2881.3,2881.0,0.0921328]
[1645146599048,1.02465064,2881.3,2880.5,0.00381262]
[1645146599049,6.5,2881.1,2880.5,0.00381262]
[1645146599253,3.8,2881.0,2880.5,0.00381262]
[1645146599449,4.298,2881.0,2880.6,0.04661072]
[1645146599696,4.298,2881.0,2880.7,0.00297645]
[1645146599898,0.798,2881.0,2880.7,0.00297645]
[1645146600196,0.97015131,2880.8,2880.7,0.00297645]
[1645146600396,2.60515,2880.9,2880.7,0.00297645]
[1645146600603,0.3,2880.8,2880.7,0.0460423]
[1645146601002,0.3,2880.8,2880.6,0.00297647]
[1645146601402,1.73669,2880.7,2880.6,0.00297647]
[1645146601603,1.16831,2880.8,2880.6,0.00297647]
[1645146601604,0.3,2880.8,2880.6,0.00297647]
[1645146601806,0.6,2881.1,2880.6,0.04661072]
[1645146602003,3.4641,2881.2,2880.6,0.04661072]
[1645146602201,3.2907,2881.2,2880.5,0.00297651]
[1645146602603,1.94693039,2881.0,2880.6,0.04661072]
[1645146602806,2.24693039,2881.0,2880.6,0.04661072]
[1645146603439,2.24693039,2881.0,2880.7,0.00287649]
[1645146603842,2.24693039,2881.0,2880.8,0.04547387]
[1645146604241,0.86823,2880.9,2880.8,0.04547387]
[1645146604439,0.86823,2880.9,2880.8,0.04835032]
[1645146604640,0.86823,2880.9,2880.8,0.00287645]
[1645146604841,0.86823,2880.9,2880.8,0.04835032]
[1645146605243,0.3,2881.0,2880.8,0.04835032]
[1645146605441,0.3,2881.0,2880.8,0.04547387]
[1645146605641,0.3,2881.1,2880.9,0.04490545]
[1645146605848,3.2907,2881.2,2880.7,0.00287647]
[1645146606045,1.30239997,2881.3,2880.7,0.00287647]
[1645146606046,1.30239997,2881.3,2880.8,0.04547387]
[1645146606246,0.13819997,2881.3,2880.8,1.14529135]
[1645146606444,0.13819997,2881.3,2880.9,0.00381262]
[1645146606646,2.9116,2881.8,2880.9,0.04871807]
[1645146606845,2.2419,2881.9,2881.0,0.04433703]
[1645146607293,0.86799,2881.7,2881.0,0.04433703]
[1645146607694,0.86802,2881.6,2881.0,0.04433703]
[1645146608093,0.86802,2881.6,2881.2,0.00288301]
[1645146608296,0.3,2881.7,2881.2,0.00288301]
[1645146608501,0.3,2881.7,2881.3,0.04263176]
[1645146608694,2.2419,2881.9,2881.3,0.04263176]
[1645146608695,1.16795,2881.8,2881.3,0.04263176]
[1645146608899,0.86795,2881.8,2881.3,0.04263176]
[1645146609097,1.16795,2881.8,2881.3,0.04263176]
[1645146609297,0.3,2881.8,2881.3,0.04263176]
[1645146609499,0.3,2881.8,2881.4,0.00288293]
[1645146609500,0.86796,2881.8,2881.4,0.00288293]
[1645146609898,1.16796,2881.8,2881.5,0.04149491]
[1645146610498,0.3,2881.8,2881.5,0.04437734]
[1645146610697,0.3,2881.8,2881.5,0.00288243]
[1645146610968,3.40981,2881.9,2881.6,0.04092649]
[1645146611371,2.5419,2881.9,2881.6,0.04092649]
[1645146611574,0.3,2881.9,2881.6,0.04092649]
[1645146611773,0.1734,2882.4,2881.6,0.00288239]
[1645146611969,2.6798,2882.6,2881.6,0.00288239]
[1645146611970,9.9158,2882.6,2881.6,0.00288239]
[1645146612169,9.9158,2882.6,2881.7,0.04035806]
[1645146612372,0.31159997,2882.5,2881.7,0.04035806]
[1645146612568,2.04711997,2882.5,2881.7,0.04035806]
[1645146612769,1.17936997,2882.5,2881.7,0.04417068]
[1645146612972,1.17936997,2882.5,2882.0,0.00288225]
[1645146613171,4.80596997,2882.5,2882.0,0.00288225]
[1645146613371,1.30596997,2882.5,2882.0,0.00288225]
[1645146613573,0.86777,2882.4,2882.0,0.00288225]
[1645146613777,0.86777,2882.4,2881.7,0.04035806]
[1645146613971,1.73556,2882.4,2881.7,0.04035806]
[1645146614173,0.3,2882.3,2882.1,0.00288373]
[1645146614372,0.3,2882.3,2882.1,0.00208373]
[1645146614594,0.13819997,2882.5,2882.1,0.00208373]
[1645146614994,0.13819997,2882.5,2881.6,0.00381262]
[1645146615393,0.13819997,2882.5,2881.7,0.04035806]
[1645146615794,1.00593997,2882.5,2881.7,0.04035806]
[1645146616400,1.00593997,2882.5,2881.9,0.96760494]
[1645146616598,1.00593997,2882.5,2882.0,0.00381262]
[1645146616797,1.30593997,2882.5,2882.0,0.00381262]
[1645146616997,0.43819997,2882.5,2882.0,0.00381262]
[1645146617197,0.13819997,2882.5,2882.0,0.00381262]
[1645146617798,0.13819997,2882.5,2882.0,0.00515222]
[1645146618640,0.13819997,2882.5,2882.0,0.00381262]
[1645146618842,0.13819997,2882.5,2882.0,0.0068902]
[1645146619839,0.13819997,2882.5,2882.0,0.00381262]
[1645146620039,1.00596997,2882.5,2882.0,0.0068902]
[1645146620239,1.30596997,2882.5,2882.0,0.0068902]
[1645146620440,0.86775,2882.4,2882.0,0.0068902]
[1645146621044,0.86779,2882.4,2881.5,0.04530753]
[1645146621244,1.73578,2882.2,2881.6,1.37652138]
[1645146621444,1.73578,2882.2,2882.0,0.00307755]
[1645146622288,1.73578,2882.2,2881.7,0.04035806]
[1645146622289,0.86789,2882.1,2881.7,0.04035806]
[1645146622490,0.86789,2882.1,2882.0,0.00134164]
[1645146622491,1.16789,2882.1,2882.0,0.00134164]
[1645146622792,1.34129,2882.1,2882.0,4.164e-05]
[1645146622991,1.34129,2882.1,2881.6,0.04092649]
[1645146622992,6.8,2882.0,2881.6,0.04092649]
[1645146623189,0.1734,2881.9,2881.6,0.04092649]
[1645146623402,2.6042,2881.8,2881.4,0.04206333]
[1645146623592,0.8533359,2881.7,2881.4,0.04206333]
[1645146623791,0.8533359,2881.7,2880.9,0.00381262]
[1645146623792,0.8533359,2881.7,2881.0,0.04433703]
[1645146623991,0.8533359,2881.7,2881.1,1.37876745]
[1645146624197,0.8533359,2881.7,2881.2,0.00381262]
[1645146624392,2.5894359,2881.7,2881.2,0.0470128]
[1645146624592,2.5894359,2881.7,2881.3,0.04263176]
[1645146625195,4.3255259,2881.7,2880.9,0.04490545]
[1645146625393,0.86805,2881.5,2881.0,1.38022056]
[1645146625592,0.86805,2881.5,2881.1,0.00381262]
[1645146625847,0.86805,2881.5,2881.1,0.04758122]
[1645146625848,1.16805,2881.5,2881.1,0.04758122]
[1645146626049,1.16805,2881.5,2881.2,0.04320018]
[1645146626050,1.34145,2881.5,2881.2,0.04320018]
[1645146626447,0.86823,2881.4,2881.2,0.04320018]
[1645146626852,1.16823,2881.4,2881.2,0.04320018]
[1645146627052,6.5,2881.3,2880.5,0.00381262]
[1645146627351,6.5,2881.3,2881.2,0.0013397]
[1645146627352,8.90789,2881.3,2881.2,0.0013397]
[1645146628151,10.11079,2881.3,2880.1,0.84399836]
[1645146628351,10.11079,2881.3,2880.4,1.37679411]
[1645146628352,1.11192372,2881.0,2880.4,1.37679411]
[1645146628650,1.11192372,2881.0,2880.7,0.00535971]
[1645146628651,0.86822,2880.9,2880.7,0.00535971]
[1645146629251,1.73644,2880.9,2880.7,0.00535971]
[1645146629456,1.73644,2880.9,2880.8,1.37674158]
[1645146629693,2.03657,2881.0,2880.8,0.00381262]
[1645146629892,2.03657,2881.0,2880.7,0.00133994]
[1645146629893,0.498,2880.9,2880.7,0.00133994]
[1645146630690,0.498,2880.9,2880.5,0.00381262]
[1645146630691,0.96859449,2880.7,2880.5,0.00381262]
[1645146630895,1.83700449,2880.7,2880.5,0.00381262]
[1645146632100,0.86838,2880.6,2880.5,0.00689479]
[1645146632496,0.86838,2880.6,2880.5,0.00308217]
[1645146632697,21.20838,2880.6,2880.5,8.217e-05]
[1645146632900,20.34,2880.3,2880.1,0.00217328]
[1645146633100,1.36661,2880.2,2880.1,0.00217328]
[1645146633339,21.70661,2880.2,2880.1,0.00217328]
[1645146633544,6.5,2880.1,2879.6,0.14734206]
[1645146633743,0.498,2880.0,2879.7,1.37815232]
[1645146634539,0.86853,2880.0,2879.7,1.37948913]
[1645146634746,1.15522461,2880.3,2879.7,1.37948913]
[1645146634943,1.1353,2880.7,2880.2,0.88120756]
[1645146635141,0.3,2881.0,2880.3,1.37815232]
[1645146635340,0.52531633,2881.6,2880.4,1.37815232]
[1645146635341,4.9952,2881.2,2880.4,1.37815232]
[1645146635541,0.1734,2881.3,2880.5,1.37815232]
[1645146635542,0.86811,2881.3,2880.5,1.37815232]
[1645146635740,0.86818,2881.1,2880.3,0.00308224]
[1645146635946,0.86818,2881.1,2880.3,1.35245103]
[1645146636145,3.6734,2881.4,2880.7,1.13254734]
[1645146636343,0.11070709,2881.3,2880.7,1.13254734]
[1645146636545,1.2255,2881.5,2880.7,1.13254734]
[1645146636945,0.9788507,2881.4,2880.8,1.34964965]
[1645146637199,1.73625,2881.6,2880.8,1.34964965]
[1645146637404,2.2947,2881.7,2880.8,1.34964965]
[1645146637602,2.34888992,2881.9,2880.8,1.34964965]
[1645146637798,0.11071518,2881.8,2880.8,1.34964965]
[1645146638901,0.11071518,2881.8,2881.4,0.86977558]
[1645146639699,2.00527,2882.1,2881.4,0.86977558]
[1645146639700,1.1374,2882.1,2881.4,0.86977558]
[1645146639904,0.11083083,2882.0,2881.5,1.35139555]
[1645146640100,0.11083083,2881.9,2881.5,1.35139555]
[1645146640301,0.11083083,2882.3,2880.8,1.35139555]
[1645146640501,0.00308251,2882.0,2880.9,1.35151737]
[1645146640837,0.86793,2881.9,2881.0,1.35151737]
[1645146641045,0.11083083,2881.8,2881.1,1.35151737]
[1645146641250,0.11083083,2881.8,2881.5,1.08946963]
[1645146641451,1.38062902,2882.8,2881.6,1.35151737]
[1645146641452,0.66036899,2882.8,2881.6,1.35151737]
[1645146641647,0.11087603,2882.8,2881.7,0.498]
[1645146641849,6.98762902,2883.2,2881.8,1.35151737]
[1645146641850,0.00308232,2882.0,2881.8,1.35151737]
[1645146642245,0.00308232,2882.0,2881.9,0.86749]
[1645146642549,0.09859037,2882.8,2881.9,2.84951737]
[1645146642744,0.09859037,2882.7,2882.0,1.35151737]
[1645146642943,0.09859037,2882.7,2881.7,1.0]
[1645146642944,0.09859037,2882.6,2882.1,1.35151737]
[1645146643144,0.09859037,2882.9,2881.8,1.35151737]
[1645146643443,0.09859492,2882.8,2882.0,0.8675]
[1645146643643,0.09859492,2883.2,2882.1,1.35151737]
[1645146643844,0.09859492,2883.1,2882.1,1.35151737]
[1645146644042,0.09859492,2883.0,2882.1,1.35151737]
[1645146644243,0.09859492,2882.9,2882.8,1.03141021]
[1645146644448,1.52781899,2883.6,2882.8,1.03141021]
[1645146644449,0.09859492,2883.2,2882.8,1.03141021]
[1645146644701,0.09859492,2883.1,2882.8,1.03141021]
[1645146644896,0.09859492,2883.0,2882.0,1.0]
[1645146645104,0.09859492,2882.9,2882.1,1.36239207]
[1645146645302,4.8223,2883.7,2881.9,1.36239207]
[1645146645303,0.00174691,2883.1,2881.9,1.36239207]
[1645146645501,0.86932691,2883.1,2881.9,1.36239207]
[1645146645702,0.09859492,2883.0,2881.9,1.36239207]
[1645146646104,0.00174691,2883.1,2881.9,1.36239207]
[1645146646105,0.09859492,2882.9,2881.9,1.36239207]
[1645146646304,3.5,2883.3,2881.9,1.36239207]
[1645146646305,0.09859492,2882.8,2882.4,1.06895192]
[1645146646509,0.09859492,2882.7,2882.4,1.06895192]
[1645146646708,0.00308232,2882.6,2882.4,1.06895192]
[1645146647211,0.00308232,2882.6,2881.5,1.86766]
[1645146647212,0.00308232,2882.6,2881.5,1.0]
[1645146647515,0.00308232,2882.6,2881.2,4.42840058]
[1645146647516,0.86778,2882.5,2881.6,1.36243924]
[1645146647713,0.86778,2882.5,2881.3,1.36243924]
[1645146647714,0.86795,2882.2,2881.3,1.36243924]
[1645146647909,3.59859492,2882.1,2881.4,1.36243924]
[1645146648108,0.09859492,2882.0,2881.5,1.36243924]
[1645146648346,0.09859492,2882.0,2881.8,1.03772077]
[1645146648545,0.09859492,2882.0,2881.1,0.00308393]
[1645146648745,0.09859492,2881.9,2880.9,1.36304537]
[1645146648945,1.7359,2882.3,2881.1,0.00308357]
[1645146648946,0.00308247,2882.1,2881.1,0.00308357]
[1645146649250,0.00308247,2882.1,2881.2,0.86775]
[1645146649546,0.00308247,2882.1,2881.3,1.36304537]
[1645146649748,0.00308247,2882.1,2881.3,1.36678334]
[1645146650046,3.772166,2882.5,2881.7,1.10420317]